[Event "Early-Titled-Tuesday-Blitz-September-26-2023"]
[Site "Chess.com"]
[Date "2023.09.26"]
[Round "8"]
[White "Druid24"]
[Black "sergoy"]
[Result "0-1"]
[WhiteElo "2661"]
[BlackElo "2927"]
[TimeControl "180+1"]
[EndTime "9:29:14 PDT"]
[Termination "sergoy won on time"]

1. e4 {[%clk 0:03:00.9]} 1... c5 {[%clk 0:03:00.1]} 2. Nc3 {[%clk 0:02:59.7]}
2... e6 {[%clk 0:02:58.1]} 3. Nf3 {[%clk 0:02:59.1]} 3... a6 {[%clk 0:02:58.4]}
4. g3 {[%clk 0:02:58.8]} 4... b5 {[%clk 0:02:58.6]} 5. Bg2 {[%clk 0:02:58.8]}
5... Bb7 {[%clk 0:02:59.3]} 6. d4 {[%clk 0:02:58.9]} 6... b4 {[%clk 0:02:58.9]}
7. Na4 {[%clk 0:02:57.9]} 7... Bxe4 {[%clk 0:02:54.8]} 8. Nxc5 {[%clk
0:02:55.9]} 8... Bd5 {[%clk 0:02:53.2]} 9. O-O {[%clk 0:02:54.1]} 9... Nf6
{[%clk 0:02:53.2]} 10. Re1 {[%clk 0:02:53.1]} 10... Be7 {[%clk 0:02:52.8]} 11.
a3 {[%clk 0:02:52.4]} 11... bxa3 {[%clk 0:02:52.1]} 12. b3 {[%clk 0:02:51.7]}
12... d6 {[%clk 0:02:44.8]} 13. Nd3 {[%clk 0:02:47.8]} 13... O-O {[%clk
0:02:44.5]} 14. Bxa3 {[%clk 0:02:47.3]} 14... Nc6 {[%clk 0:02:44.9]} 15. c4
{[%clk 0:02:43.4]} 15... Be4 {[%clk 0:02:45.1]} 16. Nf4 {[%clk 0:02:39.1]} 16...
d5 {[%clk 0:02:42.6]} 17. Bxe7 {[%clk 0:02:18.2]} 17... Nxe7 {[%clk 0:02:43.5]}
18. c5 {[%clk 0:02:09]} 18... Nf5 {[%clk 0:02:16.5]} 19. Ne5 {[%clk 0:02:02.7]}
19... Bxg2 {[%clk 0:02:09.4]} 20. Kxg2 {[%clk 0:02:03.6]} 20... Nd7 {[%clk
0:02:09.7]} 21. Qd3 {[%clk 0:01:45.9]} 21... Nxe5 {[%clk 0:02:05.1]} 22. Rxe5
{[%clk 0:01:46.8]} 22... Ne7 {[%clk 0:02:05.1]} 23. Re2 {[%clk 0:01:43.7]} 23...
Nc6 {[%clk 0:02:00.8]} 24. Ra4 {[%clk 0:01:41.4]} 24... a5 {[%clk 0:01:59.5]}
25. Qc3 {[%clk 0:01:32.3]} 25... Rb8 {[%clk 0:01:27.2]} 26. Nd3 {[%clk
0:01:30.2]} 26... Rb5 {[%clk 0:01:27.1]} 27. b4 {[%clk 0:01:29.4]} 27... h5
{[%clk 0:00:59.1]} 28. bxa5 {[%clk 0:01:27.5]} 28... Nxa5 {[%clk 0:00:59.1]} 29.
Rea2 {[%clk 0:01:23.8]} 29... Nc4 {[%clk 0:00:50.7]} 30. Nb2 {[%clk 0:01:10.7]}
30... Nxb2 {[%clk 0:00:35.9]} 31. Rxb2 {[%clk 0:01:11.6]} 31... Rxb2 {[%clk
0:00:36.4]} 32. Qxb2 {[%clk 0:01:12.5]} 32... h4 {[%clk 0:00:36.8]} 33. c6
{[%clk 0:01:08.8]} 33... Qc8 {[%clk 0:00:31.6]} 34. Qb7 {[%clk 0:01:07]} 34...
e5 {[%clk 0:00:20.9]} 35. dxe5 {[%clk 0:00:24.3]} 35... h3+ {[%clk 0:00:20.6]}
36. Kf3 {[%clk 0:00:25]} 36... Qf5+ {[%clk 0:00:20.6]} 37. Rf4 {[%clk
0:00:25.6]} 37... Qxe5 {[%clk 0:00:20.8]} 38. Qd7 {[%clk 0:00:15.4]} 38... g5
{[%clk 0:00:19.5]} 39. Ra4 {[%clk 0:00:02]} 39... f5 {[%clk 0:00:19.9]} 40. c7
{[%clk 0:00:01.8]} 40... g4+ {[%clk 0:00:20.2]} 0-1

[Event "Early-Titled-Tuesday-Blitz-September-26-2023"]
[Site "Chess.com"]
[Date "2023.09.26"]
[Round "8"]
[White "GaalZsoka"]
[Black "LeoLV10"]
[Result "1-0"]
[WhiteElo "2484"]
[BlackElo "2610"]
[TimeControl "180+1"]
[EndTime "9:29:14 PDT"]
[Termination "GaalZsoka won by resignation"]

1. Nf3 {[%clk 0:03:00.9]} 1... Nf6 {[%clk 0:02:58.6]} 2. g3 {[%clk 0:03:00.7]}
2... b5 {[%clk 0:02:58]} 3. Bg2 {[%clk 0:03:01.1]} 3... Bb7 {[%clk 0:02:58.7]}
4. O-O {[%clk 0:03:02]} 4... g6 {[%clk 0:02:58.4]} 5. d4 {[%clk 0:03:02.3]} 5...
Bg7 {[%clk 0:02:58.7]} 6. a4 {[%clk 0:03:01]} 6... b4 {[%clk 0:02:56.2]} 7. c4
{[%clk 0:03:00.6]} 7... O-O {[%clk 0:02:54.6]} 8. a5 {[%clk 0:02:55.2]} 8... c5
{[%clk 0:02:51.7]} 9. d5 {[%clk 0:02:54.3]} 9... d6 {[%clk 0:02:48.4]} 10. Nbd2
{[%clk 0:02:52.4]} 10... e5 {[%clk 0:02:44]} 11. e4 {[%clk 0:02:33.2]} 11... Ne8
{[%clk 0:02:34.3]} 12. Nb3 {[%clk 0:02:25.4]} 12... Ba6 {[%clk 0:02:29.6]} 13.
Qc2 {[%clk 0:02:17.4]} 13... Nd7 {[%clk 0:02:26]} 14. Be3 {[%clk 0:02:11.9]}
14... f5 {[%clk 0:02:18.2]} 15. Ng5 {[%clk 0:01:58.3]} 15... Nc7 {[%clk
0:02:12]} 16. exf5 {[%clk 0:01:55.2]} 16... gxf5 {[%clk 0:01:29.3]} 17. Ne6
{[%clk 0:01:51.7]} 17... Nxe6 {[%clk 0:01:29.2]} 18. dxe6 {[%clk 0:01:52.6]}
18... Nf6 {[%clk 0:01:28.7]} 19. Rad1 {[%clk 0:01:43.9]} 19... Rb8 {[%clk
0:01:19.3]} 20. Bxc5 {[%clk 0:01:42.5]} 20... Ne8 {[%clk 0:01:14.2]} 21. Bxd6
{[%clk 0:01:32]} 21... Nxd6 {[%clk 0:01:13.7]} 22. c5 {[%clk 0:01:32.3]} 22...
Rc8 {[%clk 0:01:12.3]} 23. Qb1 {[%clk 0:01:21.3]} 23... Bxf1 {[%clk 0:01:07.4]}
24. Kxf1 {[%clk 0:01:08.4]} 24... Qg5 {[%clk 0:00:17.4]} 25. cxd6 {[%clk
0:01:01.9]} 25... f4 {[%clk 0:00:17.5]} 26. e7 {[%clk 0:00:49.5]} 26... fxg3
{[%clk 0:00:17.6]} 27. exf8=Q+ {[%clk 0:00:46.6]} 27... Rxf8 {[%clk 0:00:18.5]}
28. hxg3 {[%clk 0:00:44.4]} 28... Qxg3 {[%clk 0:00:16.2]} 29. Qc2 {[%clk
0:00:42.1]} 29... e4 {[%clk 0:00:12.9]} 30. Kg1 {[%clk 0:00:37.9]} 30... Qg5
{[%clk 0:00:07.1]} 31. Qxe4 {[%clk 0:00:32.7]} 31... Qf6 {[%clk 0:00:03.3]} 32.
Qe3 {[%clk 0:00:17.8]} 32... Kh8 {[%clk 0:00:03.8]} 33. d7 {[%clk 0:00:17.9]}
33... Qd8 {[%clk 0:00:03.9]} 34. Nc5 {[%clk 0:00:17.7]} 34... Bxb2 {[%clk
0:00:02.4]} 35. Ne6 {[%clk 0:00:16.8]} 35... Bg7 {[%clk 0:00:01.3]} 36. Nxd8
{[%clk 0:00:14.3]} 36... Rxd8 {[%clk 0:00:02.2]} 37. Qe8+ {[%clk 0:00:14.7]} 1-0

[Event "Early-Titled-Tuesday-Blitz-September-26-2023"]
[Site "Chess.com"]
[Date "2023.09.26"]
[Round "8"]
[White "Denis_Makhnyov"]
[Black "DuleMudule"]
[Result "1-0"]
[WhiteElo "2932"]
[BlackElo "2786"]
[TimeControl "180+1"]
[EndTime "9:29:15 PDT"]
[Termination "Denis_Makhnyov won on time"]

1. f4 {[%clk 0:03:00.9]} 1... d5 {[%clk 0:02:56.6]} 2. Nf3 {[%clk 0:03:00.9]}
2... Bg4 {[%clk 0:02:54.1]} 3. d4 {[%clk 0:02:25.2]} 3... Bxf3 {[%clk
0:02:40.5]} 4. exf3 {[%clk 0:02:25.6]} 4... e6 {[%clk 0:02:41.1]} 5. c4 {[%clk
0:02:22.3]} 5... dxc4 {[%clk 0:02:37.8]} 6. Bxc4 {[%clk 0:02:18.5]} 6... c6
{[%clk 0:02:37.9]} 7. f5 {[%clk 0:02:17.8]} 7... Qa5+ {[%clk 0:02:35.9]} 8. Nc3
{[%clk 0:02:16.2]} 8... Qxf5 {[%clk 0:02:36.1]} 9. O-O {[%clk 0:02:13.2]} 9...
Nd7 {[%clk 0:02:33]} 10. Re1 {[%clk 0:02:08.3]} 10... Ngf6 {[%clk 0:02:21.9]}
11. Qb3 {[%clk 0:01:55.5]} 11... Nb6 {[%clk 0:02:17.8]} 12. Re5 {[%clk
0:01:40.8]} 12... Qg6 {[%clk 0:02:08.8]} 13. Rg5 {[%clk 0:00:40.3]} 13... Qh6
{[%clk 0:02:07.4]} 14. Bxe6 {[%clk 0:00:40.8]} 14... fxe6 {[%clk 0:02:01.2]} 15.
Qxe6+ {[%clk 0:00:41.7]} 15... Kd8 {[%clk 0:01:51.5]} 16. Rd5+ {[%clk
0:00:40.7]} 16... Nfxd5 {[%clk 0:01:48.1]} 17. Bxh6 {[%clk 0:00:41.6]} 17...
gxh6 {[%clk 0:01:47.3]} 18. a4 {[%clk 0:00:42]} 18... a5 {[%clk 0:01:45.8]} 19.
Ne4 {[%clk 0:00:29.8]} 19... Bg7 {[%clk 0:01:20]} 20. Qf7 {[%clk 0:00:28.7]}
20... Bxd4+ {[%clk 0:01:10.4]} 21. Kh1 {[%clk 0:00:28.7]} 21... Nd7 {[%clk
0:01:03.3]} 22. Rd1 {[%clk 0:00:28.6]} 22... Be5 {[%clk 0:01:00.5]} 23. g3
{[%clk 0:00:15.8]} 23... Bc7 {[%clk 0:00:49.3]} 24. f4 {[%clk 0:00:07.6]} 24...
Ra6 {[%clk 0:00:44.3]} 25. Nf6 {[%clk 0:00:07.1]} 25... N7b6 {[%clk 0:00:28.8]}
26. Nxd5 {[%clk 0:00:07.2]} 26... Nxd5 {[%clk 0:00:22.3]} 27. Qf6+ {[%clk
0:00:07.6]} 27... Kd7 {[%clk 0:00:22.7]} 28. Qxh8 {[%clk 0:00:08.5]} 28... Bd6
{[%clk 0:00:23.2]} 29. Qxh7+ {[%clk 0:00:08.3]} 29... Be7 {[%clk 0:00:24.1]} 30.
Qxh6 {[%clk 0:00:07.8]} 30... Rb6 {[%clk 0:00:24.2]} 31. Rxd5+ {[%clk 0:00:08]}
31... Kc7 {[%clk 0:00:22.1]} 32. Qg7 {[%clk 0:00:07.5]} 32... cxd5 {[%clk
0:00:21.3]} 33. Qxe7+ {[%clk 0:00:07.8]} 33... Kc6 {[%clk 0:00:22.2]} 34. f5
{[%clk 0:00:08.4]} 34... Rxb2 {[%clk 0:00:21.1]} 35. f6 {[%clk 0:00:08.9]} 1-0

[Event "Early-Titled-Tuesday-Blitz-September-26-2023"]
[Site "Chess.com"]
[Date "2023.09.26"]
[Round "8"]
[White "jjlai1111"]
[Black "GianmarcoVaR"]
[Result "1-0"]
[WhiteElo "2379"]
[BlackElo "2593"]
[TimeControl "180+1"]
[EndTime "9:29:17 PDT"]
[Termination "jjlai1111 won on time"]

1. d4 {[%clk 0:02:57.3]} 1... g6 {[%clk 0:02:46.2]} 2. Nf3 {[%clk 0:02:56.1]}
2... Bg7 {[%clk 0:02:45.6]} 3. g3 {[%clk 0:02:56.8]} 3... d6 {[%clk 0:02:43.1]}
4. Bg2 {[%clk 0:02:56.9]} 4... Nd7 {[%clk 0:02:42.3]} 5. O-O {[%clk 0:02:56.9]}
5... Ngf6 {[%clk 0:02:36.4]} 6. c4 {[%clk 0:02:57.1]} 6... a6 {[%clk 0:02:35.8]}
7. Nc3 {[%clk 0:02:56.9]} 7... Rb8 {[%clk 0:02:33.8]} 8. a4 {[%clk 0:02:49.9]}
8... e5 {[%clk 0:02:31.5]} 9. e4 {[%clk 0:02:43.9]} 9... O-O {[%clk 0:02:11.1]}
10. d5 {[%clk 0:02:23.9]} 10... a5 {[%clk 0:02:06.9]} 11. Ne1 {[%clk 0:02:13]}
11... Nc5 {[%clk 0:02:03.7]} 12. Nd3 {[%clk 0:02:12.5]} 12... Nfxe4 {[%clk
0:01:59.7]} 13. Nxe4 {[%clk 0:02:05.2]} 13... Na6 {[%clk 0:01:57.5]} 14. Bd2
{[%clk 0:01:58.5]} 14... b6 {[%clk 0:01:38.7]} 15. b4 {[%clk 0:01:56]} 15...
axb4 {[%clk 0:01:38.8]} 16. Nxb4 {[%clk 0:01:55]} 16... Nxb4 {[%clk 0:01:37.4]}
17. Bxb4 {[%clk 0:01:55.9]} 17... f5 {[%clk 0:01:37.1]} 18. Nc3 {[%clk
0:01:55.5]} 18... Ba6 {[%clk 0:01:30.1]} 19. Nb5 {[%clk 0:01:49.7]} 19... f4
{[%clk 0:01:11.9]} 20. Bc3 {[%clk 0:01:43.3]} 20... Qd7 {[%clk 0:01:06]} 21. Qc2
{[%clk 0:01:29.1]} 21... f3 {[%clk 0:01:02.4]} 22. Bh1 {[%clk 0:01:28.4]} 22...
Qg4 {[%clk 0:00:48.7]} 23. Bb2 {[%clk 0:01:13.9]} 23... Rf5 {[%clk 0:00:39.8]}
24. Ra3 {[%clk 0:00:45.6]} 24... Rbf8 {[%clk 0:00:08.6]} 25. Re1 {[%clk
0:00:38.2]} 25... Qh3 {[%clk 0:00:05.3]} 26. Re4 {[%clk 0:00:36.4]} 26... Rh5
{[%clk 0:00:04.6]} 27. Rh4 {[%clk 0:00:34.8]} 27... Rxh4 {[%clk 0:00:04.3]} 28.
gxh4 {[%clk 0:00:35.5]} 28... Qg4+ {[%clk 0:00:02.8]} 29. Kf1 {[%clk 0:00:35.2]}
29... Qxh4 {[%clk 0:00:02.1]} 30. Rxf3 {[%clk 0:00:35.1]} 30... Rxf3 {[%clk
0:00:01.5]} 31. Bxf3 {[%clk 0:00:36]} 31... Qxh2 {[%clk 0:00:02.1]} 32. Bg2
{[%clk 0:00:36.6]} 32... Qf4 {[%clk 0:00:02.2]} 33. Bc1 {[%clk 0:00:33.5]} 33...
Qf7 {[%clk 0:00:02.7]} 34. Bh3 {[%clk 0:00:33]} 34... Kh8 {[%clk 0:00:02.1]} 35.
Qe4 {[%clk 0:00:30.1]} 35... Qe7 {[%clk 0:00:02.1]} 36. Be6 {[%clk 0:00:27.8]}
36... Bf6 {[%clk 0:00:02.4]} 37. Qg4 {[%clk 0:00:24.9]} 37... Bg7 {[%clk
0:00:02.2]} 38. Bc8 {[%clk 0:00:24.7]} 38... Qf8 {[%clk 0:00:02.3]} 39. Bxa6
{[%clk 0:00:24.4]} 39... e4 {[%clk 0:00:02]} 40. Qc8 {[%clk 0:00:24.1]} 40...
Bh6 {[%clk 0:00:01.3]} 41. Bxh6 {[%clk 0:00:23.1]} 41... Qg8 {[%clk 0:00:01.3]}
42. Qd7 {[%clk 0:00:21.7]} 1-0

[Event "Early-Titled-Tuesday-Blitz-September-26-2023"]
[Site "Chess.com"]
[Date "2023.09.26"]
[Round "8"]
[White "Grossboss19"]
[Black "GMTalks_Youtube"]
[Result "1-0"]
[WhiteElo "2530"]
[BlackElo "2711"]
[TimeControl "180+1"]
[EndTime "9:29:19 PDT"]
[Termination "Grossboss19 won on time"]

1. d4 {[%clk 0:02:54.7]} 1... Nf6 {[%clk 0:02:58.8]} 2. Nc3 {[%clk 0:02:45.4]}
2... d5 {[%clk 0:02:58.1]} 3. Bf4 {[%clk 0:02:34]} 3... c5 {[%clk 0:02:57.6]} 4.
e3 {[%clk 0:02:33.5]} 4... cxd4 {[%clk 0:02:58]} 5. exd4 {[%clk 0:02:30.2]} 5...
a6 {[%clk 0:02:57.8]} 6. Bd3 {[%clk 0:02:27.7]} 6... Nc6 {[%clk 0:02:55.5]} 7.
Nf3 {[%clk 0:02:26.7]} 7... Bg4 {[%clk 0:02:54]} 8. Ne2 {[%clk 0:02:21.6]} 8...
Bxf3 {[%clk 0:02:49.8]} 9. gxf3 {[%clk 0:02:16.4]} 9... Nb4 {[%clk 0:02:47.6]}
10. Be5 {[%clk 0:02:05.8]} 10... e6 {[%clk 0:02:45]} 11. c3 {[%clk 0:02:03]}
11... Nxd3+ {[%clk 0:02:44.6]} 12. Qxd3 {[%clk 0:02:03.9]} 12... Nd7 {[%clk
0:02:43.7]} 13. h4 {[%clk 0:01:54]} 13... Qb6 {[%clk 0:02:32]} 14. Qd2 {[%clk
0:01:46.5]} 14... Qc6 {[%clk 0:02:23.1]} 15. h5 {[%clk 0:01:40]} 15... f6 {[%clk
0:02:18.6]} 16. Bg3 {[%clk 0:01:32.2]} 16... Bd6 {[%clk 0:02:13.5]} 17. O-O-O
{[%clk 0:01:28.3]} 17... O-O-O {[%clk 0:02:08.1]} 18. Rdg1 {[%clk 0:01:21.8]}
18... Rhg8 {[%clk 0:02:00.3]} 19. Kb1 {[%clk 0:01:14.9]} 19... Nb6 {[%clk
0:01:55.2]} 20. Bxd6 {[%clk 0:01:07.6]} 20... Qxd6 {[%clk 0:01:50.3]} 21. Ka1
{[%clk 0:01:04.9]} 21... Rd7 {[%clk 0:01:45.2]} 22. Qd3 {[%clk 0:01:03.2]} 22...
f5 {[%clk 0:01:32.2]} 23. f4 {[%clk 0:00:52.4]} 23... Kb8 {[%clk 0:01:27]} 24.
f3 {[%clk 0:00:50.6]} 24... Rc8 {[%clk 0:01:26.2]} 25. Rg2 {[%clk 0:00:49.4]}
25... Nc4 {[%clk 0:01:22.6]} 26. Rhg1 {[%clk 0:00:48.4]} 26... Rcc7 {[%clk
0:01:22.9]} 27. b3 {[%clk 0:00:46.7]} 27... Na5 {[%clk 0:01:21.4]} 28. Qd2
{[%clk 0:00:41.2]} 28... Qa3 {[%clk 0:01:18.3]} 29. Qb2 {[%clk 0:00:40.8]} 29...
Qd6 {[%clk 0:01:15.1]} 30. Re1 {[%clk 0:00:37.5]} 30... Nc6 {[%clk 0:01:12.9]}
31. Qd2 {[%clk 0:00:34.6]} 31... Qe7 {[%clk 0:01:02.5]} 32. Nc1 {[%clk
0:00:30.9]} 32... Rd6 {[%clk 0:00:49.3]} 33. Nd3 {[%clk 0:00:25.7]} 33... Qh4
{[%clk 0:00:48.7]} 34. Rh2 {[%clk 0:00:17.3]} 34... Qg3 {[%clk 0:00:41.1]} 35.
Ree2 {[%clk 0:00:15.8]} 35... Qg1+ {[%clk 0:00:35.2]} 36. Kb2 {[%clk 0:00:13.6]}
36... Qg3 {[%clk 0:00:27]} 37. Qe3 {[%clk 0:00:11.9]} 37... e5 {[%clk
0:00:21.7]} 38. fxe5 {[%clk 0:00:09.3]} 38... Rh6 {[%clk 0:00:14.7]} 39. Reg2
{[%clk 0:00:08.6]} 1-0

[Event "Early-Titled-Tuesday-Blitz-September-26-2023"]
[Site "Chess.com"]
[Date "2023.09.26"]
[Round "8"]
[White "Journey_to_GrandMaster_YT"]
[Black "KVAIDAN"]
[Result "1-0"]
[WhiteElo "2605"]
[BlackElo "2293"]
[TimeControl "180+1"]
[EndTime "9:29:20 PDT"]
[Termination "Journey_to_GrandMaster_YT won by checkmate"]

1. d4 {[%clk 0:03:00.9]} 1... e6 {[%clk 0:02:59.9]} 2. Nf3 {[%clk 0:03:00]} 2...
f5 {[%clk 0:03:00.3]} 3. d5 {[%clk 0:02:59.9]} 3... Bd6 {[%clk 0:02:59.9]} 4.
dxe6 {[%clk 0:02:57.3]} 4... dxe6 {[%clk 0:02:59.9]} 5. e4 {[%clk 0:02:51.1]}
5... e5 {[%clk 0:02:57.1]} 6. Bc4 {[%clk 0:02:36.6]} 6... Nf6 {[%clk 0:02:56.9]}
7. exf5 {[%clk 0:02:17.8]} 7... Bxf5 {[%clk 0:02:55.4]} 8. O-O {[%clk
0:02:18.4]} 8... Qe7 {[%clk 0:02:51.9]} 9. Re1 {[%clk 0:02:12.1]} 9... Nc6
{[%clk 0:02:51.2]} 10. Ng5 {[%clk 0:02:03.3]} 10... O-O-O {[%clk 0:02:48.2]} 11.
Nf7 {[%clk 0:01:59.3]} 11... Na5 {[%clk 0:02:44.1]} 12. Qe2 {[%clk 0:01:41.2]}
12... Nxc4 {[%clk 0:02:42.2]} 13. Qxc4 {[%clk 0:01:38.2]} 13... Be6 {[%clk
0:02:40.3]} 14. Nxd6+ {[%clk 0:01:38.2]} 14... Rxd6 {[%clk 0:02:36.6]} 15. Qa4
{[%clk 0:01:36]} 15... a6 {[%clk 0:02:25.5]} 16. Nc3 {[%clk 0:01:33.2]} 16...
Rhd8 {[%clk 0:02:20.5]} 17. Be3 {[%clk 0:01:28.9]} 17... Nd5 {[%clk 0:02:15.4]}
18. Bc5 {[%clk 0:01:21.1]} 18... Nxc3 {[%clk 0:01:59.7]} 19. Bxd6 {[%clk
0:01:08.1]} 19... Rxd6 {[%clk 0:01:59.1]} 20. bxc3 {[%clk 0:01:07.5]} 20... Bd7
{[%clk 0:01:57.8]} 21. Qe4 {[%clk 0:00:57.4]} 21... Re6 {[%clk 0:01:57.5]} 22.
Rad1 {[%clk 0:00:46.6]} 22... Bc6 {[%clk 0:01:52.5]} 23. Qxh7 {[%clk 0:00:46.9]}
23... Qg5 {[%clk 0:01:52.7]} 24. Qh3 {[%clk 0:00:39.6]} 24... Bd7 {[%clk
0:01:47.4]} 25. Re3 {[%clk 0:00:21.5]} 25... Re7 {[%clk 0:01:46.8]} 26. Qg3
{[%clk 0:00:19.2]} 26... Qh5 {[%clk 0:01:46]} 27. Red3 {[%clk 0:00:18.1]} 27...
Qe8 {[%clk 0:01:37.3]} 28. h3 {[%clk 0:00:16.4]} 28... Kb8 {[%clk 0:01:34.9]}
29. Kh2 {[%clk 0:00:13.8]} 29... Ka7 {[%clk 0:01:32.1]} 30. Re1 {[%clk
0:00:13.2]} 30... e4 {[%clk 0:01:31]} 31. Rde3 {[%clk 0:00:13.3]} 31... Bc6
{[%clk 0:01:31]} 32. f3 {[%clk 0:00:13.8]} 32... Re5 {[%clk 0:01:24.4]} 33. f4
{[%clk 0:00:12.7]} 33... Re7 {[%clk 0:01:23.4]} 34. Rd1 {[%clk 0:00:12.6]} 34...
Qf7 {[%clk 0:01:23.4]} 35. a3 {[%clk 0:00:11.7]} 35... Qc4 {[%clk 0:01:23.2]}
36. Rd4 {[%clk 0:00:11.4]} 36... Qa2 {[%clk 0:01:22.3]} 37. Qg5 {[%clk
0:00:11.3]} 37... Qxa3 {[%clk 0:01:14.6]} 38. Rb4 {[%clk 0:00:09]} 38... Rd7
{[%clk 0:01:11.3]} 39. Qc5+ {[%clk 0:00:07.2]} 39... Kb8 {[%clk 0:01:09]} 40.
Qf8+ {[%clk 0:00:06.2]} 40... Ka7 {[%clk 0:01:08.6]} 41. Rxb7+ {[%clk
0:00:06.6]} 41... Kxb7 {[%clk 0:01:05.6]} 42. Qxa3 {[%clk 0:00:07.3]} 42... Rd2
{[%clk 0:01:05.8]} 43. Qb4+ {[%clk 0:00:07.4]} 43... Kc8 {[%clk 0:01:06]} 44.
Qf8+ {[%clk 0:00:07.4]} 44... Kb7 {[%clk 0:01:06.1]} 45. Qxg7 {[%clk 0:00:08]}
45... a5 {[%clk 0:01:06]} 46. f5 {[%clk 0:00:08.1]} 46... a4 {[%clk 0:01:06.2]}
47. c4 {[%clk 0:00:06.6]} 47... Rxc2 {[%clk 0:00:59.9]} 48. f6 {[%clk
0:00:06.1]} 48... Rxc4 {[%clk 0:01:00.4]} 49. f7 {[%clk 0:00:06.3]} 49... Rc5
{[%clk 0:00:56.9]} 50. f8=Q {[%clk 0:00:06.4]} 50... Ra5 {[%clk 0:00:57.6]} 51.
Qb4+ {[%clk 0:00:06.3]} 51... Bb5 {[%clk 0:00:56.3]} 52. Rxe4 {[%clk 0:00:05.2]}
52... a3 {[%clk 0:00:55.2]} 53. Qxa5 {[%clk 0:00:05.1]} 53... Kc6 {[%clk
0:00:53.2]} 54. Qgxc7+ {[%clk 0:00:05.6]} 54... Kd5 {[%clk 0:00:53.5]} 55. Qxb5+
{[%clk 0:00:06]} 55... Kxe4 {[%clk 0:00:53.1]} 56. Qcc4+ {[%clk 0:00:06.7]}
56... Ke3 {[%clk 0:00:52.9]} 57. Qbb3+ {[%clk 0:00:07.3]} 57... Kf2 {[%clk
0:00:52.7]} 58. Qcc2+ {[%clk 0:00:08.2]} 58... Kf1 {[%clk 0:00:53]} 59. Qbb1#
{[%clk 0:00:09.1]} 1-0

[Event "Early-Titled-Tuesday-Blitz-September-26-2023"]
[Site "Chess.com"]
[Date "2023.09.26"]
[Round "8"]
[White "bazar-wokzal"]
[Black "PeshkaCh"]
[Result "0-1"]
[WhiteElo "2662"]
[BlackElo "2801"]
[TimeControl "180+1"]
[EndTime "9:29:26 PDT"]
[Termination "PeshkaCh won by checkmate"]

1. e4 {[%clk 0:03:00.9]} 1... e5 {[%clk 0:02:59.7]} 2. Bc4 {[%clk 0:03:00.4]}
2... Nc6 {[%clk 0:02:59]} 3. f4 {[%clk 0:03:00.3]} 3... Nf6 {[%clk 0:02:52.9]}
4. Nc3 {[%clk 0:03:00]} 4... Bb4 {[%clk 0:02:50]} 5. Nf3 {[%clk 0:02:55.8]} 5...
d6 {[%clk 0:02:48.2]} 6. O-O {[%clk 0:02:53.2]} 6... Bg4 {[%clk 0:02:47.1]} 7.
d3 {[%clk 0:02:44.6]} 7... Nd4 {[%clk 0:02:43]} 8. Kh1 {[%clk 0:02:41.8]} 8...
Bxf3 {[%clk 0:02:36.2]} 9. gxf3 {[%clk 0:02:41.2]} 9... Qd7 {[%clk 0:02:32.4]}
10. fxe5 {[%clk 0:02:18.4]} 10... dxe5 {[%clk 0:02:31.8]} 11. Bg5 {[%clk
0:02:19]} 11... c6 {[%clk 0:02:27.4]} 12. Ne2 {[%clk 0:02:12.7]} 12... Ne6
{[%clk 0:02:24]} 13. Bxf6 {[%clk 0:02:12.1]} 13... gxf6 {[%clk 0:02:23.8]} 14.
f4 {[%clk 0:02:10.6]} 14... Nxf4 {[%clk 0:01:37.3]} 15. Nxf4 {[%clk 0:02:09.3]}
15... exf4 {[%clk 0:01:35.3]} 16. Rxf4 {[%clk 0:02:09.3]} 16... Be7 {[%clk
0:01:07.2]} 17. Qh5 {[%clk 0:02:02.5]} 17... O-O-O {[%clk 0:01:06.8]} 18. Qxf7
{[%clk 0:01:44.7]} 18... Kb8 {[%clk 0:01:07.1]} 19. Qe6 {[%clk 0:01:44.3]} 19...
Qc7 {[%clk 0:01:03.7]} 20. Raf1 {[%clk 0:01:43.2]} 20... Rhe8 {[%clk 0:00:55.5]}
21. Qf7 {[%clk 0:01:36.2]} 21... Qe5 {[%clk 0:00:40.1]} 22. c3 {[%clk
0:01:31.4]} 22... Rf8 {[%clk 0:00:35.5]} 23. Qxh7 {[%clk 0:01:22.9]} 23... Rh8
{[%clk 0:00:35.4]} 24. Qf5 {[%clk 0:01:21.1]} 24... Qc7 {[%clk 0:00:33.8]} 25.
d4 {[%clk 0:01:18.7]} 25... Bd6 {[%clk 0:00:33]} 26. Qxf6 {[%clk 0:00:55.4]}
26... Bxf4 {[%clk 0:00:33]} 27. Qxf4 {[%clk 0:00:55.4]} 27... Rd6 {[%clk
0:00:32.3]} 28. e5 {[%clk 0:00:49.8]} 28... Rdh6 {[%clk 0:00:31.7]} 29. Rf2
{[%clk 0:00:49.8]} 29... a6 {[%clk 0:00:30.1]} 30. a4 {[%clk 0:00:45.4]} 30...
Ka7 {[%clk 0:00:27.4]} 31. b4 {[%clk 0:00:42.6]} 31... Qh7 {[%clk 0:00:26.8]}
32. b5 {[%clk 0:00:39]} 32... Qb1+ {[%clk 0:00:26.6]} 33. Kg2 {[%clk 0:00:35.5]}
33... Rg6+ {[%clk 0:00:23]} 34. Kf3 {[%clk 0:00:32]} 34... Rh3+ {[%clk 0:00:23]}
35. Ke2 {[%clk 0:00:30.7]} 35... Qc2+ {[%clk 0:00:21.1]} 36. Qd2 {[%clk
0:00:27.6]} 36... Qe4+ {[%clk 0:00:20.5]} 37. Kd1 {[%clk 0:00:26.7]} 37... Rg1+
{[%clk 0:00:18.4]} 38. Bf1 {[%clk 0:00:22.5]} 38... Rd3 {[%clk 0:00:17.3]} 39.
bxc6 {[%clk 0:00:18.3]} 39... Rxd2+ {[%clk 0:00:08.2]} 40. Kxd2 {[%clk
0:00:19.2]} 40... Qxc6 {[%clk 0:00:08]} 41. Bd3 {[%clk 0:00:17.7]} 41... Qxa4
{[%clk 0:00:08.1]} 42. Re2 {[%clk 0:00:16.9]} 42... Qa2+ {[%clk 0:00:05.2]} 43.
Ke3 {[%clk 0:00:17.1]} 43... Qe6 {[%clk 0:00:05.1]} 44. c4 {[%clk 0:00:16.8]}
44... Qh6+ {[%clk 0:00:05.3]} 45. Ke4 {[%clk 0:00:16.3]} 45... Rg4+ {[%clk
0:00:05.6]} 46. Kd5 {[%clk 0:00:16.4]} 46... Qc6# {[%clk 0:00:05.7]} 0-1